fUSD/lending_fUSD_20260517
["ID","MTS","AMOUNT","RATE_DAILY","PERIOD"]
[422513536,1779017450000,-159.12,0.00029112,30]
[422513563,1779017450000,-150.0,0.00029252,2]
[422513573,1779017450000,-160.14,0.0002956,30]
[422513564,1779017450000,-150.0,0.00029252,2]
[422513566,1779017450000,-150.0,0.00029252,2]
[422513562,1779017450000,-150.0,0.00029252,2]
[422513565,1779017450000,-150.0,0.00029252,2]
[422513574,1779017450000,-5027.04767755,0.00029831,3]
[422513569,1779017450000,-341.61,0.000293,7]
[422513568,1779017450000,-160.14,0.00029271,7]
[422513567,1779017450000,-150.0,0.00029252,2]
[422513572,1779017450000,-150.0,0.00029534,2]
[422513571,1779017450000,-161.29703423,0.00029318,7]
[422513576,1779017450000,-5128.0,0.0003,7]
[422513575,1779017450000,-160.14,0.00029848,2]
[422513578,1779017450000,-215.0785988,0.0003,7]
[422513577,1779017450000,-208.48490792,0.0003,30]
[422513579,1779017450000,-81060.16686431,0.0003013,7]
[422513581,1779017450000,-163.0,0.0003013,3]
[422513584,1779017450000,-236.2,0.00030136,2]
[422513583,1779017450000,-150.0,0.00030136,30]
[422513582,1779017450000,-160.14,0.00030136,7]
[422513580,1779017450000,-200.0,0.0003013,2]
[422513534,1779017450000,-472.95,0.00029105,2]
[422513557,1779017450000,-159.21,0.00029232,7]
[422513556,1779017450000,-586.38,0.00029232,7]
[422513570,1779017450000,-482.01,0.00029306,7]
[422513560,1779017450000,-150.0,0.00029252,2]
[422513552,1779017450000,-258.25127818,0.00029224,2]
[422513533,1779017450000,-586.29,0.00029105,2]
[422513537,1779017450000,-151.52,0.00029112,2]
[422513535,1779017450000,-156.27,0.00029112,30]
[422513539,1779017450000,-586.29,0.00029137,7]
[422513549,1779017450000,-464.57,0.00029201,2]
[422513538,1779017450000,-464.57,0.00029137,7]
[422513544,1779017450000,-586.29,0.00029169,30]
[422513543,1779017450000,-464.57,0.00029169,30]
[422513542,1779017450000,-151.52,0.00029152,7]
[422513547,1779017450000,-159.12,0.00029172,2]
[422513540,1779017450000,-472.95,0.00029137,7]
[422513548,1779017450000,-151.52,0.00029192,30]
[422513585,1779017450000,-200.0,0.00030137,2]
[422513555,1779017450000,-156.3,0.00029232,7]
[422513559,1779017450000,-473.07,0.00029232,7]
[422513553,1779017450000,-152.57,0.00029232,7]
[422513561,1779017450000,-150.0,0.00029252,2]
[422513551,1779017450000,-472.95,0.00029201,2]
[422513558,1779017450000,-151.61,0.00029232,2]
[422513554,1779017450000,-464.61,0.00029232,7]
[422513545,1779017450000,-472.95,0.00029169,30]
[422513546,1779017450000,-156.27,0.00029172,2]
[422513541,1779017450000,-152.0,0.0002915,3]
[422513550,1779017450000,-586.29,0.00029201,2]
[422513626,1779017451000,-201.85821351,0.00030665,7]
[422513628,1779017451000,-200.0,0.00030736,2]
[422513629,1779017451000,-150.0,0.0003098,30]
[422513624,1779017451000,-173.0,0.00030501,120]
[422513619,1779017451000,-1561.02,0.000303,14]
[422513622,1779017451000,-341.61,0.000304,7]
[422513618,1779017451000,-330.0,0.00030275,15]
[422513612,1779017451000,-153.0,0.00030203,30]
[422513617,1779017451000,-1290.8,0.00030239,2]
[422513621,1779017451000,-172.0,0.00030356,120]
[422513616,1779017451000,-172.0,0.00030237,30]
[422513614,1779017451000,-153.0,0.00030237,30]
[422513630,1779017451000,-150.0,0.00031011,2]
[422513646,1779017451000,-153.0,0.00031203,30]
[422513633,1779017451000,-200.0,0.00031096,2]
[422513631,1779017451000,-172.54,0.00031025,120]
[422513635,1779017451000,-1270.0,0.00031192,2]
[422513632,1779017451000,-528.8517062,0.00031087,3]
[422513625,1779017451000,-172.0,0.00030572,120]
[422513634,1779017451000,-482.01,0.00031168,7]
[422513636,1779017451000,-1223.0,0.00031192,2]
[422513647,1779017451000,-153.0,0.00031237,30]
[422513637,1779017451000,-3632.0,0.00031192,2]
[422513639,1779017451000,-258.779999,0.000312,7]
[422513638,1779017451000,-6055.0,0.00031192,2]
[422513620,1779017451000,-518.88,0.000303,7]
[422513627,1779017451000,-322.59406847,0.00030682,7]
[422513615,1779017451000,-418.0,0.00030237,30]
[422513597,1779017451000,-167.31,0.00030139,2]
[422513613,1779017451000,-150.0,0.00030205,2]
[422513586,1779017451000,-150.0,0.00030137,30]
[422513587,1779017451000,-755.63571541,0.00030137,2]
[422513644,1779017451000,-661.0,0.000312,30]
[422513595,1779017451000,-167.31,0.00030138,2]
[422513592,1779017451000,-258.25127818,0.00030137,2]
[422513591,1779017451000,-167.31,0.00030137,2]
[422513588,1779017451000,-892.33,0.00030137,2]
[422513598,1779017451000,-892.33,0.0003014,2]
[422513589,1779017451000,-892.33,0.00030137,2]
[422513590,1779017451000,-167.32,0.00030137,2]
[422513596,1779017451000,-892.33,0.00030139,2]
[422513593,1779017451000,-892.33,0.00030138,2]
[422513623,1779017451000,-200.0,0.00030431,2]
[422513594,1779017451000,-892.33,0.00030138,2]
[422513601,1779017451000,-167.31,0.00030141,2]
[422513602,1779017451000,-2085.06,0.000302,2]
[422513607,1779017451000,-661.0,0.000302,30]
[422513600,1779017451000,-892.33,0.00030141,2]
[422513604,1779017451000,-154.0,0.000302,30]
[422513603,1779017451000,-648.260328,0.000302,2]
[422513609,1779017451000,-2842.11446683,0.000302,2]
[422513610,1779017451000,-2842.11446682,0.000302,2]
[422513605,1779017451000,-152.0,0.000302,30]
[422513606,1779017451000,-510.0,0.000302,30]
[422513608,1779017451000,-156.0,0.000302,30]
[422513611,1779017451000,-2842.11446682,0.000302,2]
[422513599,1779017451000,-167.31,0.0003014,2]
[422513643,1779017451000,-510.0,0.000312,30]
[422513640,1779017451000,-282.449294,0.000312,7]
[422513641,1779017451000,-154.0,0.000312,30]
[422513671,1779017451000,-605.57464054,0.0003218,7]
[422513673,1779017451000,-216.42479659,0.0003218,7]
[422513675,1779017451000,-240.91430472,0.0003218,7]
[422513681,1779017451000,-501.48899189,0.00032187,7]
[422513680,1779017451000,-219.37058733,0.00032187,7]
[422513684,1779017451000,-333.33333333,0.00032196,7]
[422513694,1779017451000,-153.0,0.00032237,30]
[422513683,1779017451000,-535.25804143,0.00032196,7]
[422513685,1779017451000,-645.18813693,0.00032198,7]
[422513688,1779017451000,-510.0,0.000322,30]
[422513692,1779017451000,-153.0,0.00032203,30]
[422513691,1779017451000,-159.8992,0.00032201,7]
[422513690,1779017451000,-156.0,0.000322,30]
[422513687,1779017451000,-152.0,0.000322,30]
[422513693,1779017451000,-1290.8,0.0003221,5]
[422513689,1779017451000,-661.0,0.000322,30]
[422513686,1779017451000,-154.0,0.000322,30]
[422513695,1779017451000,-418.0,0.00032237,30]
[422513699,1779017451000,-160.82834075,0.00032255,7]
[422513697,1779017451000,-150.0,0.00032252,2]
[422513704,1779017451000,-150.0,0.00032562,2]
[422513703,1779017451000,-518.88,0.000325,7]
[422513696,1779017451000,-172.0,0.00032237,30]
[422513702,1779017451000,-268.82131017,0.00032485,30]
[422513698,1779017451000,-150.0,0.00032252,2]
[422513700,1779017451000,-326.52114925,0.00032255,7]
[422513642,1779017451000,-152.0,0.000312,30]
[422513676,1779017451000,-498.04636323,0.0003218,2]
[422513677,1779017451000,-241.62202629,0.0003218,7]
[422513701,1779017451000,-1561.02,0.000323,14]
[422513679,1779017451000,-158.20188361,0.00032187,7]
[422513674,1779017451000,-166.8807737,0.0003218,7]
[422513648,1779017451000,-418.0,0.00031237,30]
[422513650,1779017451000,-1561.02,0.000313,14]
[422513659,1779017451000,-483.8911027,0.00031591,7]
[422513651,1779017451000,-341.61,0.000315,7]
[422513649,1779017451000,-172.0,0.00031237,30]
[422513656,1779017451000,-179.5234613,0.00031586,7]
[422513652,1779017451000,-1000.0,0.000315,7]
[422513655,1779017451000,-250.74449595,0.0003158,7]
[422513653,1779017451000,-403.71642703,0.00031574,7]
[422513658,1779017451000,-166.66666667,0.0003159,7]
[422513657,1779017451000,-267.62902072,0.0003159,7]
[422513654,1779017451000,-249.02318162,0.00031574,2]
[422513645,1779017451000,-156.0,0.000312,30]
[422513663,1779017451000,-150.0,0.00031716,2]
[422513664,1779017451000,-1481.62475677,0.000318,2]
[422513678,1779017451000,-172.9737958,0.00032181,7]
[422513682,1779017451000,-359.04692259,0.00032193,7]
[422513665,1779017451000,-150.0,0.00031823,30]
[422513670,1779017451000,-172.0,0.000321,120]
[422513669,1779017451000,-200.0,0.00032055,2]
[422513672,1779017451000,-218.61285711,0.0003218,7]
[422513667,1779017451000,-96996.755564,0.00031922,2]
[422513666,1779017451000,-172.0,0.00031874,120]
[422513662,1779017451000,-163.26057462,0.00031648,7]
[422513660,1779017451000,-150.0,0.00031643,30]
[422513661,1779017451000,-2815.4926,0.00031644,2]
[422513668,1779017451000,-546.7407471,0.00031922,2]
[422513746,1779017452000,-500.0,0.00034404,60]
[422513745,1779017452000,-500.0,0.00034404,60]
[422513743,1779017452000,-400.0,0.00034403,3]
[422513741,1779017452000,-418.0,0.00034237,30]
[422513742,1779017452000,-172.0,0.00034237,30]
[422513752,1779017452000,-500.0,0.00034404,60]
[422513734,1779017452000,-6055.0,0.00034192,2]
[422513740,1779017452000,-153.0,0.00034237,30]
[422513735,1779017452000,-154.0,0.000342,30]
[422513732,1779017452000,-1223.0,0.00034192,2]
[422513753,1779017452000,-500.0,0.00034404,60]
[422513744,1779017452000,-400.0,0.00034403,3]
[422513760,1779017452000,-500.0,0.00034404,60]
[422513750,1779017452000,-500.0,0.00034404,60]
[422513747,1779017452000,-500.0,0.00034404,60]
[422513751,1779017452000,-500.0,0.00034404,60]
[422513748,1779017452000,-793.800368,0.00034404,60]
[422513755,1779017452000,-500.0,0.00034404,60]
[422513765,1779017452000,-267.935294,0.00034575,23]
[422513757,1779017452000,-500.0,0.00034404,60]
[422513754,1779017452000,-500.0,0.00034404,60]
[422513759,1779017452000,-500.0,0.00034404,60]
[422513758,1779017452000,-500.0,0.00034404,60]
[422513756,1779017452000,-500.0,0.00034404,60]
[422513730,1779017452000,-150.0,0.0003419,2]
[422513761,1779017452000,-883.7996865,0.00034404,60]
[422513749,1779017452000,-500.0,0.00034404,60]
[422513737,1779017452000,-510.0,0.000342,30]
[422513720,1779017452000,-162.0,0.00033203,30]
[422513733,1779017452000,-3632.0,0.00034192,2]
[422513763,1779017452000,-1561.02,0.000345,14]
[422513705,1779017452000,-341.61,0.000326,7]
[422513708,1779017452000,-5000.0,0.00032877,120]
[422513710,1779017452000,-367.94,0.000329,120]
[422513709,1779017452000,-267.935294,0.00032888,15]
[422513718,1779017452000,-661.0,0.000332,30]
[422513711,1779017452000,-273.293999,0.00032937,15]
[422513707,1779017452000,-157.626065,0.00032877,7]
[422513716,1779017452000,-152.0,0.000332,30]
[422513717,1779017452000,-510.0,0.000332,30]
[422513712,1779017452000,-410.29,0.00033014,5]
[422513713,1779017452000,-482.01,0.00033029,30]
[422513714,1779017452000,-163.0,0.00033058,3]
[422513715,1779017452000,-154.0,0.000332,30]
[422513719,1779017452000,-156.0,0.000332,30]
[422513721,1779017452000,-153.0,0.00033237,30]
[422513723,1779017452000,-172.0,0.00033237,30]
[422513722,1779017452000,-418.0,0.00033237,30]
[422513724,1779017452000,-1162.70131017,0.00033268,30]
[422513727,1779017452000,-341.61,0.000337,30]
[422513729,1779017452000,-1290.8,0.00034182,7]
[422513725,1779017452000,-150.0,0.00033302,2]
[422513728,1779017452000,-1532.62057459,0.0003393,30]
[422513726,1779017452000,-1561.02,0.000334,14]
[422513731,1779017452000,-1270.0,0.00034192,2]
[422513736,1779017452000,-152.0,0.000342,30]
[422513738,1779017452000,-661.0,0.000342,30]
[422513739,1779017452000,-156.0,0.000342,30]
[422513764,1779017452000,-1993.8,0.00034544,60]
[422513706,1779017452000,-806.48517117,0.00032804,7]
[422513767,1779017452000,-341.61,0.000347,30]
[422513793,1779017452000,-150.0,0.00035899,2]
[422513798,1779017452000,-25082.12885053,0.00036,2]
[422513800,1779017452000,-208.48490792,0.00036,120]
[422513794,1779017452000,-341.61,0.000359,30]
[422513803,1779017452000,-1290.8,0.00036153,30]
[422513811,1779017452000,-418.0,0.00036237,30]
[422513814,1779017452000,-2173.808,0.00036305,2]
[422513810,1779017452000,-153.0,0.00036237,30]
[422513805,1779017452000,-329.0,0.00036164,2]
[422513807,1779017452000,-152.0,0.000362,30]
[422513808,1779017452000,-510.0,0.000362,30]
[422513806,1779017452000,-154.0,0.000362,30]
[422513809,1779017452000,-661.0,0.000362,30]
[422513802,1779017452000,-1481.62475677,0.0003605,2]
[422513813,1779017452000,-267.935294,0.00036263,31]
[422513804,1779017452000,-1314.0,0.00036164,2]
[422513812,1779017452000,-172.0,0.00036237,30]
[422513815,1779017452000,-362.0,0.000364,30]
[422513822,1779017452000,-300.0,0.00036422,2]
[422513821,1779017452000,-300.0,0.00036422,2]
[422513820,1779017452000,-300.0,0.00036422,2]
[422513817,1779017452000,-300.0,0.00036422,2]
[422513816,1779017452000,-273.293999,0.00036411,32]
[422513819,1779017452000,-300.0,0.00036422,2]
[422513818,1779017452000,-300.0,0.00036422,2]
[422513824,1779017452000,-492.91797782,0.00036422,2]
[422513762,1779017452000,-152.0,0.00034462,4]
[422513801,1779017452000,-26797.0,0.00036007,2]
[422513797,1779017452000,-10107.72613921,0.00036,4]
[422513823,1779017452000,-300.0,0.00036422,2]
[422513799,1779017452000,-160.0,0.00036,120]
[422513766,1779017452000,-273.293999,0.00034674,23]
[422513777,1779017452000,-132505.08580957,0.00035,120]
[422513771,1779017452000,-1239.6,0.000349,120]
[422513769,1779017452000,-1500.0,0.00034795,2]
[422513768,1779017452000,-1756.09057459,0.00034773,30]
[422513770,1779017452000,-482.01,0.0003489,60]
[422513773,1779017452000,-188.0271109,0.00035,7]
[422513795,1779017452000,-1239.6,0.000359,120]
[422513772,1779017452000,-151.0,0.00034997,14]
[422513775,1779017452000,-518.88,0.00035,7]
[422513776,1779017452000,-1162.3166985,0.00035,3]
[422513778,1779017452000,-293.86404168,0.00035194,2]
[422513781,1779017452000,-152.0,0.000352,30]
[422513774,1779017452000,-245.7,0.00035,2]
[422513782,1779017452000,-510.0,0.000352,30]
[422513796,1779017452000,-163.0,0.00035986,3]
[422513780,1779017452000,-154.0,0.000352,30]
[422513790,1779017452000,-150.0,0.00035616,60]
[422513792,1779017452000,-303.5288317,0.00035616,2]
[422513787,1779017452000,-172.54,0.00035464,120]
[422513786,1779017452000,-172.0,0.00035237,30]
[422513791,1779017452000,-1979.55467011,0.00035616,30]
[422513788,1779017452000,-28471.54874155,0.0003561,2]
[422513789,1779017452000,-4510.3460553,0.0003561,2]
[422513783,1779017452000,-661.0,0.000352,30]
[422513784,1779017452000,-153.0,0.00035237,30]
[422513785,1779017452000,-418.0,0.00035237,30]
[422513779,1779017452000,-1500.0,0.000352,7]
[422513863,1779017453000,-300.0,0.00036422,2]
[422513865,1779017453000,-300.0,0.00036422,2]
[422513866,1779017453000,-1095.24427681,0.00036422,2]
[422513862,1779017453000,-309.96996065,0.00036422,2]
[422513858,1779017453000,-300.0,0.00036422,2]
[422513856,1779017453000,-452.10208933,0.00036422,2]
[422513864,1779017453000,-300.0,0.00036422,2]
[422513854,1779017453000,-300.0,0.00036422,2]
[422513859,1779017453000,-300.0,0.00036422,2]
[422513861,1779017453000,-484.30212364,0.00036422,2]
[422513860,1779017453000,-300.0,0.00036422,2]
[422513867,1779017453000,-300.0,0.00036422,2]
[422513876,1779017453000,-300.0,0.00036422,2]
[422513869,1779017453000,-300.0,0.00036422,2]
[422513868,1779017453000,-300.0,0.00036422,2]
[422513872,1779017453000,-300.0,0.00036422,2]
[422513871,1779017453000,-300.0,0.00036422,2]
[422513874,1779017453000,-492.91797782,0.00036422,2]
[422513875,1779017453000,-300.0,0.00036422,2]
[422513873,1779017453000,-300.0,0.00036422,2]
[422513877,1779017453000,-604.73492277,0.00036422,2]
[422513883,1779017453000,-300.0,0.00036422,2]
[422513884,1779017453000,-301.92446648,0.00036422,2]
[422513882,1779017453000,-726.3731759,0.00036422,2]
[422513857,1779017453000,-300.0,0.00036422,2]
[422513870,1779017453000,-370.71883626,0.00036422,2]
[422513853,1779017453000,-464.05309097,0.00036422,2]
[422513835,1779017453000,-301.92446648,0.00036422,2]
[422513848,1779017453000,-309.72976467,0.00036422,2]
[422513885,1779017453000,-300.0,0.00036422,2]
[422513827,1779017453000,-604.73492277,0.00036422,2]
[422513825,1779017453000,-300.0,0.00036422,2]
[422513829,1779017453000,-300.0,0.00036422,2]
[422513839,1779017453000,-333.68172245,0.00036422,2]
[422513831,1779017453000,-1067.39759447,0.00036422,2]
[422513840,1779017453000,-300.0,0.00036422,2]
[422513830,1779017453000,-527.9795525,0.00036422,2]
[422513828,1779017453000,-377.5804583,0.00036422,2]
[422513833,1779017453000,-726.3731759,0.00036422,2]
[422513837,1779017453000,-300.70672347,0.00036422,2]
[422513836,1779017453000,-300.0,0.00036422,2]
[422513855,1779017453000,-577.47815809,0.00036422,2]
[422513832,1779017453000,-893.8052833,0.00036422,2]
[422513838,1779017453000,-300.0,0.00036422,2]
[422513841,1779017453000,-949.41386656,0.00036422,2]
[422513852,1779017453000,-300.0,0.00036422,2]
[422513842,1779017453000,-300.0,0.00036422,2]
[422513845,1779017453000,-527.12281632,0.00036422,2]
[422513843,1779017453000,-1913.25849317,0.00036422,2]
[422513844,1779017453000,-344.12979214,0.00036422,2]
[422513846,1779017453000,-376.0316063,0.00036422,2]
[422513847,1779017453000,-1147.71030809,0.00036422,2]
[422513849,1779017453000,-864.84573435,0.00036422,2]
[422513850,1779017453000,-300.0,0.00036422,2]
[422513851,1779017453000,-311.04198967,0.00036422,2]
[422513834,1779017453000,-300.0,0.00036422,2]
[422513886,1779017453000,-300.70672347,0.00036422,2]
[422513826,1779017453000,-300.0,0.00036422,2]
[422513878,1779017453000,-300.0,0.00036422,2]
[422513924,1779017453000,-527.9795525,0.00036422,2]
[422513913,1779017453000,-1095.24427681,0.00036422,2]
[422513915,1779017453000,-573.26980111,0.00036422,2]
[422513917,1779017453000,-300.00000001,0.00036422,2]
[422513919,1779017453000,-492.91797782,0.00036422,2]
[422513922,1779017453000,-604.73492277,0.00036422,2]
[422513916,1779017453000,-300.0,0.00036422,2]
[422513921,1779017453000,-300.0,0.00036422,2]
[422513918,1779017453000,-300.0,0.00036422,2]
[422513920,1779017453000,-300.0,0.00036422,2]
[422513923,1779017453000,-300.0,0.00036422,2]
[422513927,1779017453000,-726.3731759,0.00036422,2]
[422513925,1779017453000,-1067.39759447,0.00036422,2]
[422513926,1779017453000,-893.8052833,0.00036422,2]
[422513934,1779017453000,-949.41386656,0.00036422,2]
[422513938,1779017453000,-527.12281632,0.00036422,2]
[422513930,1779017453000,-300.70672347,0.00036422,2]
[422513929,1779017453000,-300.0,0.00036422,2]
[422513937,1779017453000,-344.12979214,0.00036422,2]
[422513931,1779017453000,-300.0,0.00036422,2]
[422513935,1779017453000,-599.99999999,0.00036422,2]
[422513932,1779017453000,-300.0,0.00036422,2]
[422513933,1779017453000,-300.0,0.00036422,2]
[422513936,1779017453000,-1913.25849317,0.00036422,2]
[422513941,1779017453000,-864.84573435,0.00036422,2]
[422513939,1779017453000,-1147.71030809,0.00036422,2]
[422513928,1779017453000,-301.92446648,0.00036422,2]
[422513914,1779017453000,-300.0,0.00036422,2]
[422513940,1779017453000,-309.72976467,0.00036422,2]
[422513905,1779017453000,-300.0,0.00036422,2]
[422513906,1779017453000,-300.0,0.00036422,2]
[422513880,1779017453000,-1067.39759447,0.00036422,2]
[422513881,1779017453000,-893.8052833,0.00036422,2]
[422513879,1779017453000,-527.9795525,0.00036422,2]
[422513888,1779017453000,-300.0,0.00036422,2]
[422513890,1779017453000,-300.0,0.00036422,2]
[422513891,1779017453000,-1913.25849317,0.00036422,2]
[422513900,1779017453000,-464.05309097,0.00036422,2]
[422513892,1779017453000,-344.12979214,0.00036422,2]
[422513894,1779017453000,-1147.71030809,0.00036422,2]
[422513895,1779017453000,-309.72976467,0.00036422,2]
[422513889,1779017453000,-949.41386656,0.00036422,2]
[422513898,1779017453000,-311.04198967,0.00036422,2]
[422513887,1779017453000,-300.0,0.00036422,2]
[422513899,1779017453000,-300.0,0.00036422,2]
[422513907,1779017453000,-300.0,0.00036422,2]
[422513908,1779017453000,-484.30212364,0.00036422,2]
[422513901,1779017453000,-300.0,0.00036422,2]
[422513909,1779017453000,-309.96996065,0.00036422,2]
[422513897,1779017453000,-300.98075792,0.00036422,2]
[422513911,1779017453000,-300.0,0.00036422,2]
[422513904,1779017453000,-300.0,0.00036422,2]
[422513903,1779017453000,-452.10208933,0.00036422,2]
[422513912,1779017453000,-300.0,0.00036422,2]
[422513902,1779017453000,-577.47815809,0.00036422,2]
[422513896,1779017453000,-864.84573435,0.00036422,2]
[422513893,1779017453000,-527.12281632,0.00036422,2]
[422513910,1779017453000,-300.0,0.00036422,2]
[422513980,1779017454000,-309.72976467,0.00036422,2]
[422513977,1779017454000,-344.12979214,0.00036422,2]
[422513978,1779017454000,-527.12281632,0.00036422,2]
[422513974,1779017454000,-300.0,0.00036422,2]
[422513969,1779017454000,-301.92446648,0.00036422,2]
[422513983,1779017454000,-300.0,0.00036422,2]
[422513973,1779017454000,-515.51071734,0.00036422,2]
[422513982,1779017454000,-311.04198967,0.00036422,2]
[422513981,1779017454000,-864.84573435,0.00036422,2]
[422513984,1779017454000,-464.05309097,0.00036422,2]
[422513975,1779017454000,-949.41386656,0.00036422,2]
[422513987,1779017454000,-452.10208933,0.00036422,2]
[422513976,1779017454000,-1913.25849317,0.00036422,2]
[422513985,1779017454000,-300.0,0.00036422,2]
[422513986,1779017454000,-577.47815809,0.00036422,2]
[422513996,1779017454000,-300.0,0.00036422,2]
[422513968,1779017454000,-726.3731759,0.00036422,2]
[422513997,1779017454000,-405.52552921,0.00036422,2]
[422513995,1779017454000,-1095.24427681,0.00036422,2]
[422513988,1779017454000,-300.0,0.00036422,2]
[422513992,1779017454000,-309.96996065,0.00036422,2]
[422513993,1779017454000,-327.00212285,0.00036422,2]
[422513991,1779017454000,-484.30212364,0.00036422,2]
[422513989,1779017454000,-300.0,0.00036422,2]
[422513990,1779017454000,-300.0,0.00036422,2]
[422513979,1779017454000,-1147.71030809,0.00036422,2]
[422513961,1779017454000,-492.91797782,0.00036422,2]
[422513967,1779017454000,-893.8052833,0.00036422,2]
[422513965,1779017454000,-527.9795525,0.00036422,2]
[422513994,1779017454000,-300.0,0.00036422,2]
[422513944,1779017454000,-300.0,0.00036422,2]
[422513942,1779017454000,-1356.21123597,0.00036422,2]
[422513949,1779017454000,-300.0,0.00036422,2]
[422513943,1779017454000,-311.04198967,0.00036422,2]
[422513947,1779017454000,-577.47815809,0.00036422,2]
[422513945,1779017454000,-464.05309097,0.00036422,2]
[422513948,1779017454000,-452.10208933,0.00036422,2]
[422513946,1779017454000,-300.0,0.00036422,2]
[422513950,1779017454000,-300.0,0.00036422,2]
[422513952,1779017454000,-576.38018096,0.00036422,2]
[422513954,1779017454000,-309.96996065,0.00036422,2]
[422513951,1779017454000,-300.0,0.00036422,2]
[422513955,1779017454000,-300.0,0.00036422,2]
[422513956,1779017454000,-300.0,0.00036422,2]
[422513957,1779017454000,-1095.24427681,0.00036422,2]
[422513959,1779017454000,-300.0,0.00036422,2]
[422513958,1779017454000,-300.0,0.00036422,2]
[422513960,1779017454000,-300.0,0.00036422,2]
[422513962,1779017454000,-300.0,0.00036422,2]
[422513964,1779017454000,-300.0,0.00036422,2]
[422513971,1779017454000,-300.70672347,0.00036422,2]
[422513963,1779017454000,-604.73492277,0.00036422,2]
[422513972,1779017454000,-300.0,0.00036422,2]
[422513970,1779017454000,-300.0,0.00036422,2]
[422513966,1779017454000,-1067.39759447,0.00036422,2]
[422513953,1779017454000,-484.30212364,0.00036422,2]
[422513998,1779017454000,-300.0,0.00036422,2]
[422514000,1779017454000,-492.91797782,0.00036422,2]
[422514026,1779017454000,-539.5737431,0.00036422,2]
[422514033,1779017454000,-300.0,0.00036422,2]
[422514024,1779017454000,-577.47815809,0.00036422,2]
[422514035,1779017454000,-300.0,0.00036422,2]
[422514027,1779017454000,-300.0,0.00036422,2]
[422514048,1779017454000,-300.0,0.00036422,2]
[422514037,1779017454000,-300.0,0.00036422,2]
[422514042,1779017454000,-893.8052833,0.00036422,2]
[422514045,1779017454000,-300.0,0.00036422,2]
[422514047,1779017454000,-300.0,0.00036422,2]
[422514036,1779017454000,-492.91797782,0.00036422,2]
[422514044,1779017454000,-301.92446648,0.00036422,2]
[422514038,1779017454000,-604.73492277,0.00036422,2]
[422514041,1779017454000,-1067.39759447,0.00036422,2]
[422514040,1779017454000,-527.9795525,0.00036422,2]
[422514043,1779017454000,-726.3731759,0.00036422,2]
[422514046,1779017454000,-300.70672347,0.00036422,2]
[422514049,1779017454000,-949.41386656,0.00036422,2]
[422514051,1779017454000,-344.12979214,0.00036422,2]
[422514050,1779017454000,-1913.25849317,0.00036422,2]
[422514053,1779017454000,-1147.71030809,0.00036422,2]
[422514052,1779017454000,-527.12281632,0.00036422,2]
[422514055,1779017454000,-864.84573435,0.00036422,2]
[422514054,1779017454000,-309.72976467,0.00036422,2]
[422514003,1779017454000,-300.0,0.00036422,2]
[422514032,1779017454000,-1095.24427681,0.00036422,2]
[422514034,1779017454000,-304.02041243,0.00036422,2]
[422514039,1779017454000,-300.0,0.00036422,2]
[422514028,1779017454000,-300.0,0.00036422,2]
[422514001,1779017454000,-300.0,0.00036422,2]
[422514029,1779017454000,-484.30212364,0.00036422,2]
[422514006,1779017454000,-893.8052833,0.00036422,2]
[422514008,1779017454000,-301.92446648,0.00036422,2]